bitfinex-derivatives/quotes_BTCF0:USTF0_20241227
["timestamp","ask_amount","ask_price","bid_price","bid_amount"]
[1735312159387,0.1046808,95537.0,95499.0,0.052421]
[1735312159388,0.15817407,95530.0,95499.0,0.052421]
[1735312159689,0.006,95538.0,95519.0,0.001]
[1735312159888,0.306,95538.0,95519.0,0.001]
[1735312160084,0.10469176,95536.0,95499.0,0.052421]
[1735312160397,0.006,95537.0,95500.0,0.21059507]
[1735312160579,0.10469176,95535.0,95500.0,0.21059507]
[1735312160983,0.005,95537.0,95500.0,0.21059507]
[1735312161480,0.15817407,95530.0,95500.0,0.052421]
[1735312161681,0.1219,95529.0,95500.0,0.052421]
[1735312161882,0.1219,95529.0,95500.0,0.21059507]
[1735312162086,0.1183,95548.0,95522.0,0.052408]
[1735312162281,0.1183,95548.0,95530.0,0.15817407]
[1735312162591,0.1183,95548.0,95520.0,0.1202]
[1735312162782,0.1183,95548.0,95522.0,0.052409]
[1735312163690,0.001,95535.0,95523.0,0.052408]
[1735312164394,0.1193,95548.0,95525.0,0.052407]
[1735312164575,0.1243,95548.0,95525.0,0.052407]
[1735312164985,0.1193,95548.0,95525.0,0.052407]
[1735312165191,0.1193,95548.0,95520.0,0.27837407]
[1735312165489,0.1193,95548.0,95523.0,0.052408]
[1735312165685,0.001,95548.0,95530.0,0.15817407]
[1735312165890,0.24738475,95549.0,95538.0,0.15817407]
[1735312166083,0.24602475,95549.0,95538.0,0.15817407]
[1735312166285,0.006,95548.0,95538.0,0.15817407]
[1735312166589,0.006,95548.0,95523.0,0.001]
[1735312166792,0.007,95548.0,95522.0,0.052409]
[1735312167000,0.007,95548.0,95523.0,0.052408]
[1735312167284,0.007,95548.0,95520.0,0.1202]
[1735312167490,0.007,95548.0,95530.0,0.15817407]
[1735312167696,0.006,95548.0,95530.0,0.15817407]
[1735312167886,0.006,95548.0,95520.0,0.27837407]
[1735312168195,0.006,95548.0,95521.0,0.052409]
[1735312168383,0.01927482,95554.0,95530.0,0.15817407]
[1735312168686,0.008,95548.0,95522.0,0.052409]
[1735312168893,0.008,95548.0,95520.0,0.27937407]
[1735312169086,0.013,95548.0,95524.0,0.052407]
[1735312169484,0.005,95548.0,95538.0,0.15817407]
[1735312170489,0.005,95548.0,95539.0,0.0524]
[1735312170693,0.006,95554.0,95539.0,0.052399]
[1735312170994,0.006,95554.0,95551.0,0.052393]
[1735312171794,0.24602475,95586.0,95553.0,0.052392]
[1735312172095,0.24602475,95585.0,95553.0,0.052392]
[1735312172495,0.15817407,95570.0,95532.0,0.1268]
[1735312172696,0.15817407,95560.0,95527.0,0.052406]
[1735312172886,0.15817407,95560.0,95520.0,0.27837407]
[1735312173197,0.15817407,95550.0,95514.0,0.052413]
[1735312173401,0.1233,95549.0,95517.0,0.052411]
[1735312173785,0.01940141,95560.0,95530.0,0.15817407]
[1735312173996,0.1233,95568.0,95540.0,0.15817407]
[1735312174490,0.01922067,95569.0,95550.0,0.15817407]
[1735312174688,0.004,95581.0,95571.0,0.052382]
[1735312174895,0.004,95581.0,95571.0,0.21055607]
[1735312175205,0.004,95581.0,95579.0,0.052377]
[1735312175404,0.1,95600.0,95572.0,0.1192]
[1735312175706,0.24602475,95593.0,95574.0,0.05238]
[1735312175998,0.24602475,95593.0,95580.0,0.15817407]
[1735312176199,0.001,95581.0,95580.0,0.15817407]
[1735312176391,0.001,95581.0,95579.0,0.053377]
[1735312176997,0.001,95581.0,95579.0,0.052377]
[1735312177492,0.006,95593.0,95591.0,0.052371]
[1735312177700,0.001,95592.0,95591.0,0.052371]
[1735312178996,0.003,95581.0,95580.0,0.29574915]
[1735312179705,0.1,95600.0,95591.0,0.002]
[1735312179902,0.001,95599.0,95598.0,0.052367]
[1735312180298,0.24602475,95650.0,95602.0,0.052365]
[1735312180496,0.1249,95639.0,95616.0,0.052357]
[1735312180706,0.1249,95639.0,95617.0,0.052357]
[1735312181591,0.01790612,95639.0,95628.0,0.05235]
[1735312181798,0.35204,95651.0,95620.0,0.24337215]
[1735312182004,0.35204,95651.0,95631.0,0.052349]
[1735312182203,0.007,95639.0,95631.0,0.052349]
[1735312182809,0.003,95639.0,95620.0,0.29572715]
[1735312183000,0.003,95639.0,95622.0,0.052354]
[1735312183311,0.003,95639.0,95630.0,0.05235]
[1735312183811,0.003,95639.0,95620.0,0.24337215]
[1735312184018,0.003,95639.0,95628.0,0.05235]
[1735312184199,0.36935007,95651.0,95628.0,0.05235]
[1735312184408,0.003,95639.0,95628.0,0.05235]
[1735312184706,0.003,95639.0,95620.0,0.24337215]
[1735312185009,0.003,95639.0,95619.0,0.052356]
[1735312185010,0.005,95639.0,95615.0,0.052358]
[1735312185504,0.001,95639.0,95615.0,0.052358]
[1735312185806,0.001,95639.0,95622.0,0.052354]
[1735312186012,0.001,95639.0,95628.0,0.001]
[1735312186511,0.001,95639.0,95637.0,0.052345]
[1735312186900,0.001,95639.0,95628.0,0.001]
[1735312186901,0.001,95639.0,95630.0,0.05235]
[1735312187107,0.001,95639.0,95637.0,0.052345]
[1735312187614,0.01740136,95645.0,95637.0,0.052345]
[1735312187810,0.35188,95686.0,95635.0,0.24337215]
[1735312188114,0.35324,95686.0,95635.0,0.29571815]
[1735312188310,0.001,95639.0,95638.0,0.052345]
[1735312188504,0.01748419,95664.0,95651.0,0.052338]
[1735312188815,0.2389,95685.0,95651.0,0.052338]
[1735312189205,0.3434604,95685.0,95651.0,0.052338]
[1735312189406,0.2389,95685.0,95660.0,0.29570515]
[1735312189616,0.2389,95685.0,95672.0,0.052327]
[1735312189815,0.01765864,95686.0,95670.0,0.24337215]
[1735312190017,0.2389,95718.0,95685.0,0.05232]
[1735312190207,0.3645,95718.0,95690.0,0.24337215]
[1735312190424,0.36586,95718.0,95685.0,0.05232]
[1735312190930,0.1173422,95700.0,95685.0,0.05232]
[1735312191225,0.1173422,95700.0,95660.0,0.24337215]
[1735312191527,0.1173422,95700.0,95670.0,0.052327]
[1735312191729,0.1233422,95700.0,95670.0,0.052327]
[1735312192024,0.4243422,95700.0,95661.0,0.052332]
[1735312192225,0.66171435,95700.0,95652.0,0.1171]
[1735312192432,0.10451505,95699.0,95660.0,0.24337215]
[1735312192929,0.40451505,95699.0,95660.0,0.24337215]
[1735312193830,0.40451505,95699.0,95659.0,0.052333]
[1735312194028,0.40451505,95699.0,95670.0,0.001]
[1735312194234,0.24337215,95690.0,95670.0,0.001]
[1735312194425,0.24337215,95690.0,95630.0,0.30337215]
[1735312194426,0.3475,95689.0,95647.0,0.05234]
[1735312194628,0.45981809,95689.0,95666.0,0.05233]
[1735312194829,0.3475,95689.0,95667.0,0.052329]
[1735312195029,0.3475,95689.0,95671.0,0.052327]
[1735312195335,0.3475,95689.0,95673.0,0.052326]
[1735312196030,0.3545,95689.0,95673.0,0.052326]
[1735312196425,0.3605,95689.0,95673.0,0.052326]
[1735312196728,0.3605,95689.0,95667.0,0.001]
[1735312197034,0.3605,95689.0,95667.0,0.053329]
[1735312197533,0.37369062,95689.0,95666.0,0.001]
[1735312197735,0.36769062,95689.0,95660.0,0.24337215]
[1735312198029,0.37569062,95689.0,95673.0,0.001]
[1735312198229,0.37269062,95689.0,95673.0,0.001]
[1735312198431,0.37269062,95689.0,95678.0,0.052323]
[1735312198432,0.26249062,95689.0,95678.0,0.052323]
[1735312198626,0.014,95689.0,95687.0,0.052318]
[1735312199027,0.003,95689.0,95688.0,0.052318]
[1735312199228,0.006,95689.0,95688.0,0.052318]
[1735312199730,0.006,95689.0,95670.0,0.24337215]
[1735312199731,0.006,95689.0,95679.0,0.052323]
[1735312199932,0.006,95689.0,95670.0,0.24337215]
[1735312200132,0.006,95689.0,95682.0,0.052321]
[1735312200328,0.006,95689.0,95679.0,0.15757453]
[1735312200528,0.003,95689.0,95668.0,0.052329]
[1735312200730,0.01,95689.0,95678.0,0.001]
[1735312201029,0.01,95689.0,95683.0,0.05232]
[1735312201238,0.007,95689.0,95687.0,0.052318]
[1735312201739,0.1,95700.0,95679.0,0.15757453]
[1735312201939,0.1,95700.0,95691.0,0.052316]
[1735312202134,0.1,95700.0,95690.0,0.15757453]
[1735312202340,0.00136,95724.0,95690.0,0.45757453]
[1735312202527,0.5807,95795.0,95690.0,0.45757453]
[1735312202528,0.01915207,95797.0,95714.0,0.15757453]
[1735312202726,0.15757453,95790.0,95750.0,0.15757453]
[1735312202927,0.15757453,95780.0,95745.0,0.052287]
[1735312203131,0.15757453,95770.0,95733.0,0.052293]
[1735312203325,0.15757453,95770.0,95735.0,0.052292]
[1735312203936,0.10443591,95769.0,95735.0,0.052292]
[1735312204137,0.10443591,95769.0,95740.0,0.05229]
[1735312204442,0.3,95769.0,95730.0,0.24420372]
[1735312204642,0.3,95769.0,95735.0,0.052292]
[1735312204842,0.3,95769.0,95730.0,0.00156693]
[1735312204843,0.10443373,95768.0,95730.0,0.00156693]
[1735312205136,0.24263679,95760.0,95735.0,0.001]
[1735312205440,0.2392,95759.0,95735.0,0.001]
[1735312205641,0.35169673,95759.0,95735.0,0.001]
[1735312206032,0.5392,95759.0,95735.0,0.001]
[1735312206434,0.21693809,95758.0,95735.0,0.001]
[1735312206742,0.5392,95759.0,95735.0,0.001]
[1735312206941,0.24263679,95750.0,95735.0,0.001]
[1735312207134,0.21892461,95757.0,95735.0,0.001]
[1735312207331,0.1144827,95749.0,95696.0,0.18777652]
[1735312207644,0.1144827,95749.0,95690.0,0.49329502]
[1735312207645,0.24263679,95740.0,95697.0,0.052313]
[1735312207836,0.11977386,95749.0,95697.0,0.052313]
[1735312208038,0.11977386,95739.0,95698.0,0.052312]
[1735312208339,0.24263679,95730.0,95689.0,0.052317]
[1735312208533,0.24263679,95730.0,95696.0,0.001]
[1735312208841,0.11603888,95729.0,95696.0,0.002]
[1735312209041,0.24263679,95720.0,95697.0,0.001]
[1735312209434,0.3,95720.0,95697.0,0.001]
[1735312209635,0.117,95728.0,95697.0,0.001]
[1735312209828,0.417,95728.0,95697.0,0.001]
[1735312210135,0.22152046,95727.0,95697.0,0.001]
[1735312210536,0.1135,95726.0,95697.0,0.001]
[1735312210736,0.1135,95726.0,95696.0,0.001]
[1735312211430,0.11353757,95725.0,95696.0,0.001]
[1735312211631,0.24263679,95720.0,95696.0,0.001]
[1735312211834,0.21801767,95725.0,95696.0,0.001]
[1735312212146,0.1135,95726.0,95697.0,0.001]
[1735312212442,0.1135,95726.0,95699.0,0.052312]
[1735312212636,0.1135,95726.0,95690.0,0.052316]
[1735312212836,0.11248065,95725.0,95696.0,0.001]
[1735312213233,0.41248065,95725.0,95696.0,0.001]
[1735312213436,0.11248065,95725.0,95696.0,0.001]
[1735312213839,0.308,95725.0,95696.0,0.053313]
[1735312214033,0.313,95725.0,95696.0,0.053313]
[1735312214443,0.305,95725.0,95690.0,0.24263679]
[1735312214631,0.305,95725.0,95697.0,0.001]
[1735312214832,0.10448174,95724.0,95697.0,0.001]
[1735312215342,0.40448174,95724.0,95697.0,0.001]
[1735312215541,0.40448174,95724.0,95682.0,0.052321]
[1735312215750,0.40448174,95724.0,95696.0,0.001]
[1735312215941,0.3,95724.0,95696.0,0.001]
[1735312216448,0.008,95725.0,95696.0,0.001]
[1735312216744,0.003,95724.0,95696.0,0.001]
[1735312217245,0.009,95724.0,95697.0,0.001]
[1735312217546,0.10448229,95723.0,95697.0,0.001]
[1735312217741,0.10448229,95723.0,95688.0,0.18777652]
[1735312217932,0.10448229,95723.0,95696.0,0.001]
[1735312217933,0.40448229,95723.0,95696.0,0.001]
[1735312218137,0.24263679,95710.0,95696.0,0.001]
[1735312218341,0.1144,95709.0,95688.0,0.18777652]
[1735312218548,0.1144,95709.0,95697.0,0.001]
[1735312218751,0.10448174,95708.0,95679.0,0.1893442]
[1735312219141,0.40448174,95708.0,95679.0,0.1893442]
[1735312219340,0.40448174,95708.0,95679.0,0.18777652]
[1735312219542,0.11251567,95707.0,95679.0,0.18777652]
[1735312219949,0.41251567,95707.0,95663.0,0.00056]
[1735312220249,0.1045003,95706.0,95661.0,0.24010952]
[1735312220645,0.11538548,95705.0,95661.0,0.24010952]
[1735312221150,0.24263679,95690.0,95661.0,0.18777652]
[1735312221349,0.24263679,95690.0,95645.0,0.37651889]
[1735312221350,0.1215,95689.0,95663.0,0.003]
[1735312221549,0.24263679,95680.0,95663.0,0.003]
[1735312221749,0.24263679,95680.0,95660.0,0.18777652]
[1735312221953,0.2364,95679.0,95661.0,0.005]
[1735312222450,0.10451941,95678.0,95661.0,0.005]
[1735312222950,0.11135252,95677.0,95637.0,0.18777652]
[1735312223152,0.24263679,95670.0,95637.0,0.18777652]
[1735312223344,0.41135252,95677.0,95637.0,0.18777652]
[1735312223647,0.10452652,95669.0,95661.0,0.002]
[1735312223855,0.11022048,95676.0,95629.0,0.18777652]
[1735312224050,0.24263679,95660.0,95629.0,0.18777652]
[1735312224544,0.24263679,95670.0,95641.0,0.002]
[1735312224745,0.10453799,95659.0,95641.0,0.002]
[1735312224945,0.24263679,95660.0,95641.0,0.001]
[1735312225246,0.22061971,95658.0,95641.0,0.002]
[1735312225449,0.22061971,95658.0,95618.0,0.18777652]
[1735312225450,0.10455384,95658.0,95618.0,0.18777652]
[1735312225754,0.24263679,95630.0,95618.0,0.18777652]
[1735312225955,0.1136,95629.0,95618.0,0.18777652]
[1735312226455,0.10456094,95628.0,95600.0,0.1]
[1735312227255,0.24263679,95610.0,95600.0,0.1]
[1735312227441,0.35168,95622.0,95600.0,0.105]
[1735312228057,0.35168,95622.0,95600.0,0.111]
[1735312228251,0.003,95610.0,95600.0,0.106]
[1735312228453,0.003,95610.0,95600.0,0.1]
[1735312228648,0.003,95610.0,95600.0,0.101]
[1735312229449,0.01930385,95610.0,95600.0,0.101]
[1735312229751,0.01630385,95610.0,95600.0,0.101]
[1735312229956,0.36168,95622.0,95600.0,0.101]
[1735312230158,0.008,95610.0,95600.0,0.101]
[1735312230553,0.16587593,95610.0,95600.0,0.101]
[1735312230755,0.16587593,95610.0,95600.0,0.08562014]
[1735312230756,0.16787593,95610.0,95600.0,0.08562014]
[1735312231060,0.16787593,95610.0,95562.0,0.0015694]
[1735312231061,0.10459703,95609.0,95562.0,0.0015694]
[1735312231252,0.15787593,95590.0,95562.0,0.0015694]
[1735312231559,0.15787593,95600.0,95562.0,0.0015694]
[1735312231757,0.15787593,95590.0,95562.0,0.0015694]
[1735312232149,0.2446,95599.0,95562.0,0.0015694]
[1735312232661,0.10462877,95598.0,95562.0,0.0015694]
[1735312233149,0.10462877,95598.0,95562.0,0.3015694]
[1735312233350,0.001,95590.0,95572.0,0.052381]
[1735312233846,0.1202,95599.0,95562.0,0.0589564]
[1735312234061,0.1202,95599.0,95562.0,0.012]
[1735312234062,0.24350762,95590.0,95562.0,0.012]
[1735312234249,0.1046233,95589.0,95562.0,0.012]
[1735312234449,0.1155,95589.0,95562.0,0.012]
[1735312234646,0.1155,95589.0,95562.0,0.005]
[1735312234862,0.2201233,95589.0,95562.0,0.005]
[1735312236546,0.23624648,95589.0,95551.0,0.052393]
[1735312236752,0.24024648,95589.0,95562.0,0.005]
[1735312237445,0.24124648,95589.0,95551.0,0.052393]
[1735312238352,0.24350762,95570.0,95544.0,0.052397]
[1735312238552,0.24350762,95570.0,95542.0,0.00156989]
[1735312238761,0.24350762,95560.0,95542.0,0.00156989]
[1735312239060,0.24350762,95560.0,95504.0,0.052418]
[1735312239262,0.24350762,95530.0,95502.0,0.18777652]
[1735312239452,0.23392236,95559.0,95502.0,0.18777652]
[1735312239453,0.24350762,95520.0,95502.0,0.18777652]
[1735312239763,0.1239,95529.0,95502.0,0.18777652]
[1735312240256,0.1239,95529.0,95504.0,0.007]
[1735312240657,0.10469998,95528.0,95504.0,0.007]
[1735312240954,0.14092471,95529.0,95502.0,0.007]
[1735312241358,0.10469395,95528.0,95502.0,0.007]
[1735312241757,0.14092471,95529.0,95502.0,0.007]
[1735312242465,0.13992471,95529.0,95500.0,0.152421]
[1735312242665,0.14092471,95529.0,95500.0,0.152421]
[1735312242964,0.14092471,95529.0,95504.0,0.004]
[1735312243360,0.01702471,95529.0,95504.0,0.304]
[1735312243661,0.01702471,95529.0,95506.0,0.052417]
[1735312244365,0.01702471,95529.0,95505.0,0.1132]
[1735312245061,0.24350762,95520.0,95504.0,0.004]
[1735312245261,0.24350762,95520.0,95500.0,0.1]
[1735312245458,0.24350762,95510.0,95500.0,0.1]
[1735312245959,0.24350762,95510.0,95506.0,0.003]
[1735312246161,0.54350762,95510.0,95475.0,5.0]
[1735312246362,0.24350762,95500.0,95475.0,5.0]
[1735312246566,0.115,95499.0,95475.0,5.0]
[1735312246962,0.10472081,95498.0,95475.0,5.0]
[1735312247870,0.24350762,95490.0,95475.0,5.0]
[1735312248057,0.24350762,95490.0,95475.0,4.993]
[1735312248257,0.54350762,95490.0,95475.0,4.993]
[1735312248661,0.10472684,95489.0,95475.0,4.993]
[1735312250064,0.35216,95488.0,95475.0,4.83881119]
[1735312250261,0.47295194,95488.0,95475.0,3.7282666]
[1735312250468,0.77295194,95488.0,95475.0,3.63196176]
[1735312250653,0.10473178,95487.0,95475.0,3.49327342]
[1735312251059,0.1160964,95486.0,95475.0,3.49327342]
[1735312251272,0.1160964,95486.0,95475.0,3.47700342]
[1735312251460,0.4160964,95486.0,95475.0,3.47700342]
[1735312251655,0.10473233,95485.0,95475.0,3.47700342]
[1735312251960,0.11963069,95484.0,95475.0,3.47700342]
[1735312252361,0.35716,95488.0,95475.0,3.47700342]
[1735312252569,0.10473342,95483.0,95475.0,3.47700342]
[1735312252870,0.35616,95488.0,95475.0,3.47700342]
[1735312253070,0.009,95487.0,95475.0,3.47700342]
[1735312253260,0.10473233,95482.0,95475.0,3.47700342]
[1735312253466,0.009,95487.0,95475.0,3.47700342]
[1735312253665,0.10473233,95481.0,95475.0,3.47700342]
[1735312254064,0.003,95486.0,95475.0,3.47700342]
[1735312254273,0.36116,95488.0,95475.0,3.47700342]
[1735312254476,0.002,95482.0,95475.0,3.47700342]
[1735312255267,0.003,95486.0,95475.0,3.47700342]
[1735312255468,0.10473562,95481.0,95475.0,3.47700342]
[1735312255970,0.003,95486.0,95475.0,3.47700342]
[1735312256166,0.10473616,95480.0,95475.0,3.47700342]
[1735312256474,0.12107961,95485.0,95475.0,3.43400342]
[1735312256669,0.10473616,95479.0,95475.0,3.43400342]
[1735312256874,0.006,95481.0,95475.0,3.43400342]
[1735312257265,0.002,95482.0,95475.0,3.43400342]
[1735312257266,0.10473397,95478.0,95475.0,3.43400342]
[1735312257467,0.006,95480.0,95475.0,3.4205389]
[1735312257670,0.2255364,95477.0,95475.0,3.08759639]
[1735312257873,0.2255364,95477.0,95475.0,2.98711063]
[1735312258072,0.3,95477.0,95475.0,2.76595863]
[1735312258270,0.22545643,95476.0,95475.0,1.83153409]
[1735312258475,0.22545643,95476.0,95475.0,0.29226542]
[1735312258781,0.52545643,95476.0,95421.0,0.1145]
[1735312258969,0.24350762,95470.0,95422.0,1.25688006]
[1735312259366,0.24350762,95470.0,95422.0,1.55688006]
[1735312259567,0.10473891,95469.0,95422.0,1.55688006]
[1735312259771,0.24350762,95460.0,95422.0,1.25688006]
[1735312259967,0.10473891,95469.0,95422.0,1.25688006]
[1735312260173,0.24350762,95460.0,95422.0,1.25688006]
[1735312260768,0.24350762,95460.0,95422.0,1.26088006]
[1735312260965,0.10477183,95459.0,95422.0,1.26088006]
[1735312261170,0.24350762,95450.0,95422.0,1.26088006]
[1735312261869,0.24350762,95440.0,95422.0,1.26088006]
[1735312262171,0.35236,95439.0,95422.0,1.17906107]
[1735312262370,0.47374807,95439.0,95422.0,1.15134106]
[1735312262568,0.119,95438.0,95422.0,1.13275105]
[1735312262764,0.119,95438.0,95423.0,1.0971355]
[1735312262981,0.24350762,95433.0,95403.0,1.0971355]
[1735312263184,0.3,95433.0,95422.0,0.004]
[1735312263484,0.10930862,95432.0,95422.0,0.004]
[1735312263669,0.4342484,95438.0,95423.0,1.0971355]
[1735312263868,0.10478885,95432.0,95423.0,1.0971355]
[1735312264070,0.11800856,95436.0,95423.0,1.0971355]
[1735312264269,0.0172484,95438.0,95423.0,1.0971355]
[1735312264480,0.10479214,95435.0,95423.0,1.0971355]
[1735312264674,0.11800856,95437.0,95423.0,1.0971355]
[1735312264875,0.10478994,95434.0,95423.0,1.0971355]
[1735312265277,0.0152484,95438.0,95423.0,1.0971355]
[1735312265476,0.10478994,95433.0,95423.0,1.0971355]
[1735312265682,0.11893818,95433.0,95423.0,1.06787139]
[1735312265981,0.10479104,95432.0,95423.0,1.06787139]
[1735312266173,0.21534289,95432.0,95423.0,1.06787139]
[1735312266370,0.51534289,95432.0,95423.0,1.06787139]
[1735312267574,0.21534289,95432.0,95423.0,1.06787139]
[1735312268381,0.21534289,95432.0,95423.0,1.0405639]
[1735312268681,0.51534289,95432.0,95423.0,0.83044684]
[1735312269078,0.51534289,95432.0,95423.0,0.7663881]
[1735312269274,0.21534289,95432.0,95423.0,0.7663881]
[1735312270074,0.51534289,95432.0,95423.0,0.7388981]
[1735312270384,0.51534289,95432.0,95423.0,0.6062387]
[1735312270585,0.51534289,95432.0,95423.0,0.5375187]
[1735312270978,0.51534289,95432.0,95423.0,0.5345187]
[1735312271477,0.21534289,95432.0,95423.0,0.4932877]
[1735312271680,0.51534289,95432.0,95423.0,0.3818047]
[1735312272172,0.21534289,95432.0,95423.0,0.36488312]
[1735312272573,0.10479104,95432.0,95423.0,0.36488312]
[1735312272974,0.11880248,95431.0,95423.0,0.36488312]
[1735312273174,0.10479159,95431.0,95423.0,0.36488312]
[1735312273587,0.36846654,95439.0,95423.0,0.36488312]
[1735312273775,0.10479159,95438.0,95424.0,0.36488312]
[1735312273981,0.10479159,95438.0,95406.0,0.36488312]
[1735312274186,0.36846654,95439.0,95423.0,0.001]
[1735312274381,0.10478775,95437.0,95423.0,0.001]
[1735312274582,0.36850655,95439.0,95424.0,0.36488312]
[1735312274890,0.10478775,95436.0,95424.0,0.36488312]
[1735312275283,0.36846654,95439.0,95424.0,0.36488312]
[1735312275586,0.1047872,95435.0,95424.0,0.36488312]
[1735312275879,0.001,95438.0,95424.0,0.36488312]
[1735312276288,0.10478939,95437.0,95424.0,0.36488312]
[1735312276477,0.001,95436.0,95424.0,0.36488312]
[1735312277081,0.10478885,95435.0,95424.0,0.36488312]
[1735312277889,0.11037227,95439.0,95410.0,0.15858605]
[1735312278185,0.002,95438.0,95420.0,0.15858605]
[1735312278389,0.51114605,95460.0,95420.0,0.15858605]
[1735312278589,0.003,95436.0,95420.0,0.45858605]
[1735312278785,0.51114605,95460.0,95420.0,0.45858605]
[1735312279195,0.10479104,95459.0,95420.0,0.45858605]
[1735312279485,0.007,95435.0,95420.0,0.45858605]
[1735312279673,0.10479104,95459.0,95420.0,0.45858605]
[1735312279875,0.15858605,95450.0,95405.0,0.1149]
[1735312280091,0.15858605,95440.0,95405.0,0.1149]
[1735312280275,0.15858605,95440.0,95410.0,0.15858605]
[1735312280478,0.11701042,95449.0,95420.0,0.15858605]
[1735312280679,0.005,95459.0,95420.0,0.15858605]
[1735312280888,0.005,95459.0,95420.0,0.45858605]
[1735312281089,0.00968,95460.0,95440.0,0.15858605]
[1735312281291,0.009,95460.0,95441.0,0.1135]
[1735312281589,0.15858605,95451.0,95441.0,0.1135]
[1735312282179,0.009,95459.0,95441.0,0.1135]
[1735312282387,0.15858605,95470.0,95441.0,0.4135]
[1735312282586,0.01428239,95480.0,95441.0,0.4135]
[1735312282587,0.17286844,95480.0,95441.0,0.4135]
[1735312282781,0.002,95451.0,95441.0,0.4135]
[1735312282977,0.006,95451.0,95441.0,0.4145]
[1735312283181,0.15858605,95470.0,95441.0,0.4145]
[1735312283694,0.01428239,95480.0,95441.0,0.4145]
[1735312283695,0.17286844,95480.0,95441.0,0.4145]
[1735312283881,0.15858605,95470.0,95441.0,0.4145]
[1735312284191,0.15858605,95451.0,95441.0,0.1145]
[1735312284493,0.15858605,95451.0,95418.0,0.18777652]
[1735312284791,0.15858605,95431.0,95418.0,0.18777652]
[1735312284985,0.15858605,95431.0,95424.0,0.18777652]
[1735312286287,0.01,95431.0,95418.0,0.001]
[1735312286488,0.004,95431.0,95415.0,0.2222]
[1735312287387,0.004,95431.0,95415.0,0.5222]
[1735312287591,0.24435563,95460.0,95415.0,0.5222]
[1735312287786,0.002,95431.0,95415.0,0.5222]
[1735312287991,0.24435563,95470.0,95420.0,0.24435563]
[1735312288294,0.18401514,95464.0,95422.0,0.052464]
[1735312288491,0.24435563,95460.0,95423.0,0.052463]
[1735312288896,0.24435563,95460.0,95423.0,0.352463]
[1735312289091,0.24435563,95460.0,95423.0,0.3]
[1735312289294,0.10477622,95459.0,95423.0,0.3]
[1735312289597,0.24435563,95450.0,95423.0,0.3]
[1735312289788,0.10477622,95459.0,95422.0,0.18877652]
[1735312290095,0.26072477,95460.0,95423.0,0.001]
[1735312290397,0.24435563,95450.0,95423.0,0.001]
[1735312290794,0.01636914,95460.0,95424.0,0.1141]
[1735312291092,0.002,95460.0,95424.0,0.1141]
[1735312291298,0.002,95460.0,95424.0,0.4141]
[1735312291489,0.24435563,95470.0,95424.0,0.4141]
[1735312291689,0.006,95459.0,95424.0,0.4141]
[1735312291888,0.24435563,95480.0,95430.0,0.24435563]
[1735312292095,0.1209,95490.0,95424.0,0.11466]
[1735312292096,0.24435563,95460.0,95424.0,0.11466]
[1735312292288,0.24435563,95460.0,95424.0,0.1141]
[1735312292684,0.24435563,95460.0,95424.0,0.4151]
[1735312292685,0.25035563,95460.0,95424.0,0.4151]
[1735312293292,0.24835563,95460.0,95424.0,0.4151]
[1735312293599,0.01806444,95460.0,95424.0,0.4151]
[1735312293999,0.02006444,95460.0,95424.0,0.4151]
[1735312294396,0.02006444,95460.0,95434.0,0.052457]
[1735312294603,0.02006444,95460.0,95436.0,0.052456]
[1735312295003,0.02006444,95460.0,95436.0,0.352456]
[1735312295301,0.02006444,95460.0,95438.0,0.052455]
[1735312295501,0.02106444,95460.0,95438.0,0.052455]
[1735312295700,0.02106444,95460.0,95439.0,0.052454]
[1735312295908,0.18403171,95471.0,95450.0,0.24435563]
[1735312296201,0.001,95460.0,95451.0,0.2281]
[1735312296399,0.19785801,95471.0,95451.0,0.2281]
[1735312296605,0.19785801,95471.0,95451.0,0.5281]
[1735312297103,0.0138263,95471.0,95451.0,0.5281]
[1735312297292,0.18403171,95481.0,95451.0,0.5281]
[1735312297498,0.18403171,95481.0,95451.0,0.5371]
[1735312297895,0.002,95460.0,95451.0,0.5371]
[1735312298403,0.18403171,95485.0,95451.0,0.5371]
[1735312298608,0.001,95481.0,95451.0,0.5371]
[1735312298798,0.001,95481.0,95451.0,0.5281]
[1735312298998,0.001,95481.0,95451.0,0.580547]
[1735312299218,0.001,95481.0,95461.0,0.052442]
[1735312299409,0.001,95481.0,95451.0,0.5281]
[1735312299597,0.001,95481.0,95451.0,0.2281]
[1735312299996,0.001,95481.0,95451.0,0.5281]
[1735312300191,0.001,95481.0,95454.0,0.052446]
[1735312300391,0.001,95481.0,95451.0,0.52866]
[1735312300598,0.001,95481.0,95460.0,0.24435563]
[1735312300899,0.18403171,95488.0,95467.0,0.052439]
[1735312301100,0.18403171,95488.0,95451.0,0.23166]
[1735312301306,0.18403171,95488.0,95451.0,0.2311]
[1735312301307,0.24435563,95480.0,95451.0,0.2311]
[1735312301498,0.24435563,95470.0,95451.0,0.003]
[1735312301803,0.24435563,95470.0,95440.0,0.00157159]
[1735312302008,0.24435563,95470.0,95429.0,0.18799172]
[1735312302009,0.24435563,95450.0,95429.0,0.18799172]
[1735312303000,0.18403171,95447.0,95414.0,0.114]
[1735312304006,0.18403171,95447.0,95431.0,0.052458]
[1735312304210,0.18403171,95447.0,95430.0,0.24435563]
[1735312304406,0.18403171,95447.0,95414.0,0.41464]
[1735312304407,0.18403171,95447.0,95429.0,0.006]
[1735312304605,0.18403171,95441.0,95434.0,0.052457]
[1735312304804,0.34768,95479.0,95431.0,0.24435563]
[1735312304805,0.1163,95479.0,95431.0,0.24435563]
[1735312304999,0.1163,95479.0,95449.0,0.052449]
[1735312305200,0.1163,95479.0,95450.0,0.2335]
[1735312305406,0.13023017,95479.0,95450.0,0.2335]
[1735312305907,0.10478061,95478.0,95450.0,0.2335]
[1735312306109,0.10478061,95478.0,95450.0,0.1216]
[1735312306727,0.21948061,95478.0,95450.0,0.1216]